Cogmind - Beta 16 @@@ ROGUE MODE // 2025.10.24 @ 19:58:48 Player: Moodge Result: Destroyed by Y-45 Defender with Heavy Assault Rifle Performance ------------- Evolutions (1) 500 Regions Visited (2) 400 Robots Destroyed (31) 155 Value Destroyed (895) 895 Prototype IDs (1) 20 Alien Tech Used (0) 0 Bonus (0) 0 TOTAL SCORE: 1970 Bonus ------- None Cogmind --------- Core Integrity 0/400 Matter 292/300 Energy 160/160 System Corruption 14% Temperature Cool (0) Movement Rolling (155) Ox5 Location -9/Materials Parts ------- > --- POWER (2) -------- Light Nuclear Core > --- PROPULSION (2) --- Wheel > --- UTILITY (3) ------ High-capacity Storage Unit Improved Terrain Scanner Terrain Scan Processor > --- WEAPON (2) ------- Assault Cannon > --- INVENTORY (20) --- Ion Engine Light Ion Engine Signal Interpreter Improved Terrain Scanner Terrain Scan Processor Advanced Targeting Computer Advanced Targeting Computer System Shield System Shield Advanced Beam Cannon Assault Cannon Katana Katana Peak State ------------ > --- POWER ------------ Light Ion Engine Improved Ion Engine > --- PROPULSION ------- Advanced Treads Advanced Treads > --- UTILITY ---------- High-capacity Storage Unit Improved Terrain Scanner Terrain Scan Processor > --- WEAPON ----------- Advanced Beam Cannon Katana > --- INVENTORY -------- Light Nuclear Core Advanced Treads Advanced Treads Wheel Structural Scanner Signal Interpreter Improved Terrain Scanner Terrain Scan Processor Advanced Targeting Computer Advanced Targeting Computer Advanced Targeting Computer Advanced Targeting Computer System Shield System Shield Advanced Beam Cannon Assault Cannon Assault Cannon Katana Katana Katana [Rating: 26] Favorites ----------- Power Light Ion Engine Engine Light Ion Engine Power Core Light Nuclear Core Propulsion Advanced Treads Treads Advanced Treads Wheel Wheel Utility Terrain Scan Processor Device Improved Terrain Scanner Storage High-capacity Storage Unit Processor Terrain Scan Processor Protection Backup Plating I Weapon Advanced Beam Cannon Energy Gun Medium Laser Energy Cannon Advanced Beam Cannon Ballistic Gun Shotgun Ballistic Cannon Assault Cannon Slashing Weapon Katana Build | -11 -10 -9 ------- Run | Yrd Mat Mat Slots Evolved 2 | . . 2 Power 1 | . . 1 Propulsion . | . . . Utility 1 | . . 1 Weapon . | . . . Parts Attached 43 | 5 7 31 Power 7 | 1 1 5 Engine 6 | 1 1 4 Core 1 | . . 1 Reactor . | . . . Propulsion 15 | 2 2 11 Treads 12 | 2 . 10 Leg . | . . . Wheel 3 | . 2 1 Hover . | . . . Flight . | . . . Utility 12 | 1 2 9 Device 3 | . . 3 Storage 3 | 1 1 1 Processor 6 | . 1 5 Hackware . | . . . Protection . | . . . Artifact . | . . . Weapon 9 | 1 2 6 Energy Gun 4 | 1 2 1 Energy Cannon 1 | . . 1 Ballistic Gun 1 | . . 1 Ballistic Cannon 1 | . . 1 Launcher . | . . . Special Weapon . | . . . Impact Weapon . | . . . Slashing Weapon 2 | . . 2 Piercing Weapon . | . . . Special Melee Weapon . | . . . Unidentified Prototypes 1 | . . 1 Parts Lost 13 | . 4 9 Power 5 | . 1 4 Propulsion 5 | . 2 3 Utility 1 | . . 1 Weapon 2 | . 1 1 Highest Loss Streak 5 | . 4 5 To Critical Strikes . | . . . Average Backups 12 | 4 8 13 Power 1 | 1 1 1 Propulsion 1 | 2 1 1 Utility 5 | . 3 5 Weapon 4 | . 2 5 Tool/Special . | . . . Unused Backups 29 | . . 29 Power 2 | . . 2 Propulsion 2 | . . 2 Utility 12 | . . 12 Weapon 13 | . . 13 Tool/Special . | . . . Average Slot Usage (%) 88 | . 84 88 Engine 16 | . 12 17 Core 1 | . . 1 Treads 20 | . 18 20 Wheel 2 | . 8 . Device 7 | . . 8 Storage 11 | . 14 10 Processor 13 | . 11 13 Energy Gun 4 | . 16 1 Energy Cannon 5 | . . 6 Ballistic Gun 1 | . . 1 Slashing Weapon 4 | . . 5 Peak Build Rating 26 | 5 8 26 Average Rating 16 | 2 6 18 On Entrance 4 | . 5 7 Avg Prop Armor Cover (%) 10 | . . 10 Naked Turns . | . . . Heaviest Build 57 | 12 19 57 Greatest Support 44 | 40 40 44 Greatest Overweight (x) 5 | 1 3 5 Average Overweight (x) . | . . . Largest Inventory Capacity 20 | 8 10 20 Average Capacity 16 | 7 9 18 Most Carried 20 | 8 10 20 Average Carried 12 | 5 8 13 Final Capacity 20 | 8 10 20 Final Carried 13 | 4 10 13 Class Distribution -------------------- 87% | Mutant 12% | Scavenger-Mutant Dominant Class ---------------- Mutant | -10/Materials Mutant | -9/Materials Resources | -11 -10 -9 ----------- Run | Yrd Mat Mat Matter Collected 963 | 229 81 653 Remotely . | . . . Salvage Created 987 | . 101 886 Parts 58 | . 8 50 Haulers Intercepted . | . . . Recyclers Shooed 1 | . . 1 Parts Field Recycled . | . . . Retrieved Matter . | . . . Parts Self-Destructed . | . . . Prevented . | . . . Parts Restored . | . . . Kills | -11 -10 -9 ------- Run | Yrd Mat Mat Combat Hostiles Destroyed 25 | . 4 21 Melee 2 | . . 2 Guns 8 | . 3 5 Cannons 12 | . . 12 AOE 2 | . 1 1 Classes Destroyed 7 | . 3 4 Worker 1 | . . 1 Tunneler 1 | . . 1 Watcher 4 | . 1 3 Swarmer 6 | . 3 3 Grunt 13 | . 1 12 Brawler 1 | . . 1 Sentry 5 | . . 5 Best Kill Streak 4 | . 4 4 Combat Bots Only 3 | . 3 3 Max Kills in Single Turn 1 | . 1 1 Gunslinging . | . . . Exploded 1 | . 1 1 Melee 1 | . . 1 Uniques/NPCs Destroyed . | . . . Combat | -11 -10 -9 -------- Run | Yrd Mat Mat Hostile Shots Fired 252 | . 75 177 Missed 44 | . 10 34 Hits 208 | . 65 143 Melee 10 | . . 10 Projectile 198 | . 65 133 Critical Strikes 5 | . 1 4 Damage Taken 2704 | . 760 1944 Core 660 | . 246 414 Absorbed by Shields . | . . . Regen/Repaired (Parts) 61 | . . 61 Core Remaining (%) 50 | 100 1 . Volleys Fired 137 | . 21 116 Largest 2 | . 2 1 Hottest 90 | . 90 68 Shots Fired 142 | . 26 116 Gun 74 | . 26 48 Cannon 68 | . . 68 Launcher . | . . . Special . | . . . Kinetic 31 | . . 31 Thermal 96 | . 21 75 Explosive . | . . . Electromagnetic 15 | . 5 10 Robot Hit Streak 15 | . 4 15 Robot Miss Streak 7 | . 7 4 Penetration Max . | . . . Secondary Targets . | . . . Shots Hit Robots 91 | . 11 80 Core Hits 40 | . 8 32 Critical Kills 1 | . . 1 Critical Parts Destroyed . | . . . Critical Strikes 3 | . 1 2 Burn 1 | . 1 . Meltdown 1 | . . 1 Sever 1 | . . 1 Melee Attacks 12 | . . 12 Impact . | . . . Slashing 12 | . . 12 Piercing . | . . . Sneak Attacks 1 | . . 1 Combat Hostiles . | . . . Follow-up Attacks . | . . . Damage Inflicted 1906 | . 208 1698 Guns 686 | . 179 507 Cannons 813 | . . 813 Explosions 135 | . 29 106 Melee 272 | . . 272 Ramming . | . . . Kinetic 467 | . . 467 Thermal 1072 | . 168 904 Explosive . | . . . Electromagnetic 95 | . 40 55 Impact . | . . . Slashing 272 | . . 272 Piercing . | . . . Highest Corruption 14 | . . 14 Average Corruption 12 | . . 12 Corruption Purged . | . . . Corruption Blocked . | . . . Effects 95 | . . 95 Message Errors 22 | . . 22 Matter Fused 23 | . . 23 Heat Flow Errors 10 | . . 10 Energy Discharges 12 | . . 12 Parts Rejected 2 | . . 2 Parts Fused 2 | . . 2 Data Loss (minor) 7 | . . 7 Data Loss (major) 7 | . . 7 Misfires 4 | . . 4 Alerts 1 | . . 1 Misdirections 1 | . . 1 Weapon Failures 4 | . . 4 Overload Shots . | . . . Overflow Damage 25 | . . 25 Projectiles 5 | . . 5 Explosions . | . . . Melee 20 | . . 20 Knockbacks . | . . . Impact . | . . . Kinetic . | . . . Secondary . | . . . Self-Inflicted Damage 214 | . 147 67 Shots 4 | . 2 2 Rammed . | . . . Targets Rammed . | . . . Kicked . | . . . Crushed . | . . . Highest Temperature 552 | . 275 552 Average Temperature 134 | . 190 126 Received Heat Transfer 912 | . 168 744 Effects 12 | . . 12 Shutdowns 3 | . . 3 Interference 5 | . . 5 Matter Decay 1 | . . 1 Short Circuit 2 | . . 2 Damage (core) 1 | . . 1 Siege Activations . | . . . Martial Activations . | . . . Shielding Activations . | . . . Robots Disrupted . | . . . Combat Hostiles . | . . . Robots Corrupted . | . . . Combat Hostiles . | . . . Parts Fried . | . . . Impact Corruptions . | . . . Robots Melted 1 | . . 1 Combat Hostiles 1 | . . 1 Parts Melted 2 | . 1 1 Heat Transferred 2222 | . 481 1741 Parts Sabotaged . | . . . Parts Stolen . | . . . Parts Stripped . | . . . Power Chain Reactions 3 | . 1 2 Alert | -11 -10 -9 ------- Run | Yrd Mat Mat Maximum Alert Level 1 | . . 1 Low Security (%) 97 | 100 100 97 Level 1 2 | . . 2 Level 2 . | . . . Level 3 . | . . . Level 4 . | . . . Level 5 . | . . . High Security . | . . . Max Security . | . . . Peak Influence 211 | . 105 211 Initial 17 | . . 17 Average 42 | . 28 45 Influence Increases 895 | . 175 720 Destroy 0b10 Robot/C 500 | . 80 420 Destroy 0b10 Robot/NC 30 | . 5 25 Destroy Leader 138 | . 12 126 Successful Hack 50 | . . 50 Disable Machine 90 | . 30 60 Destroy Structure 42 | . 33 9 Partial Spotted 15 | . 15 . Lose Combat Pursuer 30 | . . 30 Influence Decreases 686 | . 132 554 Entered New Map 26 | . . 26 Time Decay 530 | . 92 438 Lost Part 130 | . 40 90 Squads Dispatched 9 | . 1 8 Investigation 7 | . . 7 Extermination . | . . . Reinforcement 2 | . 1 1 Assault . | . . . Garrison . | . . . Intercept . | . . . Searches Triggered . | . . . Construction Impeded . | . . . Haulers Reinforced . | . . . Active Scanning Responses . | . . . Cargo Convoy Interrupts . | . . . Stealth | -11 -10 -9 --------- Run | Yrd Mat Mat Distress Signals 2 | . . 2 Communications Jammed . | . . . Distress Signals . | . . . Times Spotted 49 | . 8 41 Peak Tracking Total 7 | . 5 7 Tactical Retreats 2 | . . 2 Traps | -11 -10 -9 ------- Run | Yrd Mat Mat Traps Triggered 1 | . . 1 Indirectly . | . . . Trap Hack Attempts . | . . . Triggered . | . . . Disarmed . | . . . Reprogrammed 1 | . 1 . Reused . | . . . Traps Extracted . | . . . Installed . | . . . Triggered . | . . . Machines | -11 -10 -9 ---------- Run | Yrd Mat Mat Machines Disabled 6 | . 2 4 Max in Single Turn 1 | . 1 1 Machines Repaired . | . . . Machines Dismantled . | . . . Machines Sabotaged . | . . . Overloaded Fab Kills . | . . . Hacking | -11 -10 -9 --------- Run | Yrd Mat Mat Machines Accessed 11 | . 2 9 Terminals 7 | . 1 6 Fabricators . | . . . Repair Stations 2 | . 1 1 Recycling Units 1 | . . 1 Scanalyzers 1 | . . 1 Garrison Access . | . . . Total Hacks 32 | . 5 27 Successful 14 | . 2 12 Failed 18 | . 3 15 Catastrophic 3 | . . 3 Database Lockouts . | . . . Manual . | . . . Terminals 21 | . 3 18 Fabricators . | . . . Repair Stations 6 | . 2 4 Recycling Units 2 | . . 2 Scanalyzers 3 | . . 3 Garrison Access . | . . . Terminal Hacks 8 | . 1 7 Record 1 | . . 1 Scanalyzer Index 1 | . . 1 Alert Level 1 | . . 1 Reprogram Traps 1 | . 1 . Surveillance Status 1 | . . 1 Zone Layout 3 | . . 3 Fabricator Hacks . | . . . Repair Station Hacks 4 | . 1 3 Scan Component 2 | . . 2 Repair 1 | . . 1 Refit 1 | . 1 . Recycling Unit Hacks 1 | . . 1 Report Inventory 1 | . . 1 Scanalyzer 1 | . . 1 Insert Component 1 | . . 1 Garrison Access Hacks . | . . . Unauthorized Hacks . | . . . Terminals . | . . . Fabricators . | . . . Repair Stations . | . . . Recycling Units . | . . . Scanalyzers . | . . . Garrison Access . | . . . Data Cores Recovered . | . . . Used . | . . . Hacking Detections 9 | . 1 8 Full Trace Events 7 | . . 7 Feedback Events 1 | . . 1 Corruption 1 | . . 1 Feedback Blocked . | . . . Robot Schematics Acquired . | . . . Robots Built . | . . . Authchips . | . . . Time . | . . . Total Robot Build Rating . | . . . Part Schematics Acquired . | . . . Parts Built . | . . . Authchips . | . . . Time . | . . . Total Part Build Rating . | . . . Part Studies Acquired . | . . . Parts Repaired 1 | . . 1 Time 13 | . . 13 Parts Recycled . | . . . Recycled Matter . | . . . Retrieved Matter . | . . . Retrieved Components . | . . . Parts Scanalyzed . | . . . Part Schematics Acquired . | . . . Parts Damaged . | . . . Bothacking | -11 -10 -9 ------------ Run | Yrd Mat Mat Used RIF Installer . | . . . Robots Hacked . | . . . Non-combat . | . . . Combat . | . . . Robot Hacks Applied . | . . . Relay Couplers Released . | . . . Fabnet Peak Effective % . | . . . Robots Rewired . | . . . Allies Hacked . | . . . Hacks Repelled . | . . . Allies | -11 -10 -9 -------- Run | Yrd Mat Mat Total Allies . | . . . Largest Group . | . . . Highest-Rated Group . | . . . Highest-Rated Ally . | . . . Total Orders . | . . . Ally Attacks . | . . . Total Damage . | . . . Kills . | . . . Allies Corrupted . | . . . Allies Melted . | . . . Intel | -11 -10 -9 ------- Run | Yrd Mat Mat Active Infowar (turns) 2116 | . . 2116 Optics 282 | . . 282 Terrain 1223 | . . 1223 Structural 673 | . . 673 Robot Analysis Total . | . . . Derelict Logs Recovered . | . . . Drone Launches . | . . . Drone Recoveries . | . . . Exploration | -11 -10 -9 ------------- Run | Yrd Mat Mat Turns Passed 2992 | 53 464 2475 Spaces Moved 1202 | 41 232 929 Core 31 | 30 1 . Treads 1033 | 11 165 857 Legs . | . . . Wheels 138 | . 66 72 Hover . | . . . Flight . | . . . Fastest Speed 50 | 50 90 90 Average Speed 191 | 100 140 208 Slowest Speed 305 | 160 200 305 Overloaded Moves . | . . . Propulsion Burnouts . | . . . Robots Hopped . | . . . Potential Cave-ins . | . . . Cave-ins Triggered . | . . . Exploration Rate (%) 34 | 3 38 61 Regions Visited 2 Branch Regions . Pre-discovered Areas . | . . . Known Exits Taken 1 | . 1 . Unknown Exits Taken 1 | 1 . . Scrap Searched . | . . . Spaces Dug . | . . . Terrain Destroyed 36 | . 31 5 Melee . | . . . Projectile . | . . . AOE 36 | . 31 5 Terrain Rammed . | . . . Walls Destroyed . | . . . Machines Disabled . | . . . Actions | -11 -10 -9 --------- Run | Yrd Mat Mat Total 1740 | 53 344 1343 Wait 239 | . 72 167 Move 1200 | 40 231 929 Hop . | . . . Pick Up 68 | 8 10 50 Fast Attach 6 | 1 1 4 Attach 19 | 4 4 11 Detach 1 | . 1 . Swap 20 | . 2 18 Drop 38 | . 2 36 Fire 137 | . 21 116 Melee 12 | . . 12 Ram . | . . . Kick . | . . . Crush . | . . . Escape Stasis . | . . . Rewire . | . . . Trap . | . . . Miscellaneous . | . . . Route ------- -11/Scrapyard -10/Materials -9/Materials (discovered 3 exits: [*Mat x2] / [*Min]) History --------- Turn | Location | Event 8 | -11/Scrapyard | Discovered new exit (range 16) 54 | -11/Scrapyard | Entered Materials 306 | -10/Materials | Build established: Mutant 354 | -10/Materials | Core integrity fell below 50% 368 | -10/Materials | Core integrity fell below 20% 386 | -10/Materials | Lost 4 parts (1p2n1w) 505 | -10/Materials | Discovered new exit (range 15) 517 | -10/Materials | Identified exit to Materials 518 | -10/Materials | Entered another Materials area 518 | -9/Materials | Evolved 2 slots: Power x1, Utility x1 635 | -9/Materials | Discovered new exit (range 9) 675 | -9/Materials | Repaired Med. Storage Unit 867 | -9/Materials | System corruption reached 10% 897 | -9/Materials | Lost 5 parts (2p1n1u1w) 1358 | -9/Materials | Discovered new exit (range 16) 1504 | -9/Materials | Build established: Scavenger-Mutant 1841 | -9/Materials | Core integrity fell below 50% 1916 | -9/Materials | Build established: Mutant 2590 | -9/Materials | Core integrity fell below 20% 2835 | -9/Materials | Discovered new exit (range 15) 2993 | -9/Materials | Destroyed by Y-45 Defender with Heavy Assault Rifle Last Messages --------------- 02945_ K-01 Serf collects debris. 02946_ Adv. Treads destroyed. 02948_ System corrupted: Component data lost. 02959_ Dropped Katana. 02966_ T-07 Excavator is excavating. 02968_ Adv. Treads destroyed. 02970_ System corrupted: Heat flow error (+242). 02970_ T-07 Excavator is excavating. 02971_ System corrupted: Assault Cannon jammed. 02974_ T-07 Excavator is excavating. 02975_ Y-45 Defender destroyed. 02977_ Acquired 37 matter. 02978_ Acquired 4 matter. 02985_ Connecting with Scanalyzer... >>Insert(Imp. Terrain Scanner) Scanning Imp. Terrain Scanner... Ready to analyze. 02985_ ALERT: Suspicious activity at Scanalyzer M001. Dispatching Investigation squad. 02987_ System corrupted: Matter fused (-8). Map ----- +----------------------------------------------------+ | | | | | | | | | ??????????????????#??#??????#????#?#?#?#??#??##### | | ?????????????????????????##???###?###?#####?#?#### | | ????????????? ?????##??????#?????????############# | | ????????????? ?????#??#?#??#####??#?## #### | | ???????????? ??????????#???#??#??### """"" #### | | ?????????#?#???#????####?#??##?###?### """"" #### | | ??????????? ????? ?? # #?####?# """"" ### | | ???????????#? ? ? # ? #??##### ### | | ?????????##?#? ?? # ?"?"?#??##### """"" ### | | ???????????#?? +? """ ###?#### """"" ### | | ????????????# ?#?##### # """ ?##?#?## """"" #?# | | ?????????#?#??#?##?### # ? ###?#### ### | | ?????????"? ???####### ###################+####### | | ?????# ???S ? ## | | ?????????? ? ?# < | | ?????# ??? # ## """" | | ??????? +?###### #################### """" # | | ?????? ??? # ###### # ##### ? # """" # | | ???????#?#?## # # #"S ! ##### ??# # | | ?????#???"" ? # # #""" ####? + # | | ???? ???????#?# # # "" =##### # """" # | | ???? ???"?????# # # /@ ##### ? # """" # | | ???? ? ?? # [# ####/######## # ""%" " | | ???????? #?# += %!* #??##+###### T | | ??#? ? ? ??# # =# #### ##### ###### " | | ???????######?######+#### ##### ??#### """" # | | ????? ?? ??+ ?? ?## ## """" # | | ??????? ??? # #? ## ## ## ############ """" # | | ????? ??? ? #?# ## ##Y## ######?##?# # | | ??????? ? #? ?# ## ## ##?#####?# # | | ????????????? #? ## ## #? ########## """" # | | ??????????###?# ??## ## ### #?# # """% # | | ?????#??? ??? ??? ## ## #####??# """ # """" %# | | ?????????? ?# ##+?###+## ???##?## ""R" + %+ | | ??????? ??? # ? ? #?##?## "" " # %# | | ??????????? # ?? # ####?## # """" # | | ????????????? ?????? #?###?#???# # """% | | ????????????? ? ?"?? ?#####?#?######+## """" | | ??????????????? ?????? ##?##?#?#?#???# ## | | ???????????????????????#????##?####?## ## | | ??????????????? ??? ???#??##?###????## ## " | | ???????????????????????##???## #??#?## ## T # | | ???????????????????????? ??? #?#??## ## " # | | ???????????????????????? ??? #######+## # | | ????????????????????????? ??" # # # | | ????????????????????????????" # # ## # | +----------------------------------------------------+ Best States ------------- Heat Dissipation 28 Energy Generation 17 Energy Capacity 290 Matter Stores 300 Matter Capacity 300 Sight Range 18 Terrain Scan Range 16 Terrain Scan Density 85 Armor Coverage 80 Evasion (%) 50 Melee Accuracy 5 Recoil Reduction 2 Item Schematics ----------------- None Robot Schematics ------------------ None Fabricated ------------ Nothing Repaired ---------- Med. Storage Unit | 75% | -9/Materials Studied --------- None Alien Tech Used ----------------- None Achievements -------------- None Challenges ------------ None Game ------ Seed ShieldDisruptorMinigun Manual? 0 Play Time 00:31:35 Cumulative 14.9 hours Start 2025.10.24 @ 19:31:40 End 2025.10.24 @ 19:58:48 Sessions 1 Manual Loads 0 Difficulty Rogue Special Mode None Game No. 45 Rogue 45 Adventurer 0 Explorer 0 Win Type - Total 0 Types 0/0/0/0/0/0/0/0/0/0 Lore% 9 Gallery% 19 Achievement% 15 Wizard Run 0 Options --------- Layout 1 ASCII 0 Keyboard 0 Movement Mouse Keybinds 0 Fullscreen 1 Font 32/SmallcapsGlow Map View 50x35 Zoom Use 0% Tactical HUD 1 Map Filters NONE Filters NONE Steam 1 RUN: 7bc5a2a9-7674-41a2-929f-f0f943c09ae5